[Event "MČR 2022 blesk"]
[Site "Turnov, Czech Republic"]
[Date "2022.09.10"]
[Round "7.2"]
[White "Cerveny, Martin"]
[Black "Kraus, Tomas"]
[Result "0-1"]
[TimeControl "2x 3 min + 2s/move"]
[WhiteElo "2288"]
[BlackElo "2389"]

1. d4 {[%clk 00:03:03]} d5 {[%clk 00:03:04]} 2. c4 {[%clk 00:03:04]} {[%emt
00:00:14]} e6 {[%clk 00:03:05]} 3. Nc3 {[%clk 00:03:06]} Nf6 {[%clk 00:03:05]}
4. Bg5 {[%clk 00:03:02]} {[%emt 00:00:04]} c6 {[%clk 00:02:57]} {[%emt
00:00:04]} 5. e3 {[%clk 00:03:01]} {[%emt 00:00:06]} Nbd7 {[%clk 00:02:55]}
{[%emt 00:00:04]} 6. cxd5 {[%clk 00:02:59]} {[%emt 00:00:04]} exd5 {[%clk
00:02:55]} {[%emt 00:00:05]} 7. Bd3 {[%clk 00:02:59]} Be7 {[%clk 00:02:43]}
{[%emt 00:00:10]} 8. Qc2 {[%clk 00:03:00]} h6 {[%clk 00:02:37]} {[%emt
00:00:14]} 9. Bh4 {[%clk 00:03:01]} Nh5 {[%clk 00:02:38]} 10. Bxe7 {[%clk
00:02:59]} {[%emt 00:00:04]} Qxe7 {[%clk 00:02:39]} 11. Nge2 {[%clk 00:02:59]}
{[%emt 00:00:09]} Nb6 {[%clk 00:02:27]} {[%emt 00:00:06]} 12. O-O {[%clk
00:02:48]} {[%emt 00:00:12]} O-O {[%clk 00:02:24]} {[%emt 00:00:07]} 13. Rac1
{[%clk 00:02:32]} {[%emt 00:00:17]} Bd7 {[%clk 00:02:11]} {[%emt 00:00:16]} 14.
Na4 {[%clk 00:02:17]} {[%emt 00:00:16]} Nxa4 {[%clk 00:01:55]} {[%emt
00:00:18]} 15. Qxa4 {[%clk 00:02:17]} Rfe8 {[%clk 00:01:42]} {[%emt 00:00:17]}
16. Qc2 {[%clk 00:01:46]} {[%emt 00:00:37]} g6 {[%clk 00:01:19]} {[%emt
00:00:21]} 17. a3 {[%clk 00:01:46]} {[%emt 00:00:05]} a5 {[%clk 00:01:18]}
{[%emt 00:00:04]} 18. Qc5 {[%clk 00:01:38]} {[%emt 00:00:06]} Qxc5 {[%clk
00:01:14]} {[%emt 00:00:05]} 19. Rxc5 {[%clk 00:01:39]} {[%emt 00:00:05]} Ng7
{[%clk 00:01:14]} 20. Rfc1 {[%clk 00:01:36]} {[%emt 00:00:09]} Bf5 {[%clk
00:01:10]} {[%emt 00:00:05]} 21. Bxf5 Nxf5 {[%clk 00:01:11]} 22. Nc3 {[%clk
00:01:11]} {[%emt 00:00:05]} Nd6 {[%clk 00:01:01]} {[%emt 00:00:09]} 23. Na4
{[%clk 00:01:11]} {[%emt 00:00:06]} Nc4 {[%clk 00:00:48]} {[%emt 00:00:18]} 24.
R5xc4 {[%clk 00:00:41]} {[%emt 00:00:48]} dxc4 {[%clk 00:00:49]} 25. Nb6 {[%clk
00:00:42]} Rad8 {[%clk 00:00:40]} 26. Rxc4 {[%clk 00:00:41]} Re6 {[%clk
00:00:33]} {[%emt 00:00:06]} 27. g3 {[%clk 00:00:39]} {[%emt 00:00:05]} c5
{[%clk 00:00:30]} {[%emt 00:00:05]} 28. dxc5 {[%clk 00:00:39]} Rd1+ {[%clk
00:00:25]} {[%emt 00:00:06]} 29. Kg2 {[%clk 00:00:39]} {[%emt 00:00:04]} Rd2
{[%clk 00:00:26]} 30. b4 {[%clk 00:00:32]} {[%emt 00:00:06]} axb4 {[%clk
00:00:27]} 31. axb4 {[%clk 00:00:33]} {[%emt 00:00:10]} Rxe3 {[%clk 00:00:27]}
32. Rf4 {[%clk 00:00:21]} {[%emt 00:00:10]} Rb3 {[%clk 00:00:18]} {[%emt
00:00:14]} 33. Nc4 {[%clk 00:00:19]} Rd7 {[%clk 00:00:10]} {[%emt 00:00:16]} 34.
Na5 {[%clk 00:00:17]} Rb2 {[%clk 00:00:06]} {[%emt 00:00:05]} 35. h4 {[%clk
00:00:18]} h5 {[%clk 00:00:08]} {[%emt 00:00:10]} 36. Re4 {[%clk 00:00:15]} Kg7
{[%clk 00:00:05]} {[%emt 00:00:04]} 37. Rf4 {[%clk 00:00:16]} Re7 {[%clk
00:00:05]} 38. c6 {[%clk 00:00:13]} {[%emt 00:00:06]} bxc6 39. Nxc6 {[%clk
00:00:14]} Re6 {[%clk 00:00:03]} 40. Nd4 {[%clk 00:00:13]} Rf6 {[%clk
00:00:03]} {[%emt 00:00:04]} 41. b5 {[%clk 00:00:08]} Rxf4 {[%clk 00:00:03]}
{[%emt 00:00:09]} 42. gxf4 {[%clk 00:00:09]} Rb4 {[%clk 00:00:04]} 43. Nc6
{[%clk 00:00:08]} Rxb5 {[%clk 00:00:05]} 44. Kf3 {[%clk 00:00:10]} Rb2 {[%clk
00:00:05]} {[%emt 00:00:05]} 45. Ne5 {[%clk 00:00:09]} Ra2 {[%clk 00:00:06]} 46.
Nc4 {[%clk 00:00:10]} {[%emt 00:00:09]} Rc2 {[%clk 00:00:06]} 47. Ne3 {[%clk
00:00:11]} Rc3 {[%clk 00:00:07]} 48. Ke4 {[%clk 00:00:12]} Ra3 {[%clk
00:00:08]} {[%emt 00:00:05]} 49. Kf3 {[%clk 00:00:13]} Ra1 {[%clk 00:00:05]} 50.
Kg3 {[%clk 00:00:14]} Kf6 {[%clk 00:00:06]} {[%emt 00:00:05]} 51. Kf3 {[%clk
00:00:15]} Ke6 {[%clk 00:00:06]} 52. Kg3 {[%clk 00:00:16]} f5 {[%clk 00:00:07]}
53. Kf3 {[%clk 00:00:16]} {[%emt 00:00:04]} Rc1 {[%clk 00:00:07]} 54. Kg3
{[%clk 00:00:17]} {[%emt 00:00:05]} Kd6 {[%clk 00:00:08]} 55. Kf3 {[%clk
00:00:17]} Kc5 {[%clk 00:00:09]} 56. Kg3 {[%clk 00:00:18]} {[%emt 00:00:14]}
Kd4 {[%clk 00:00:09]} 57. Kf3 {[%clk 00:00:19]} Kd3 {[%clk 00:00:10]} 58. Nd5
{[%clk 00:00:19]} Ra1 {[%clk 00:00:07]} {[%emt 00:00:05]} 59. Ne7 {[%clk
00:00:17]} Rg1 {[%clk 00:00:07]} {[%emt 00:00:04]} 60. Nc6 {[%clk 00:00:17]}
Kc4 {[%clk 00:00:04]} {[%emt 00:00:04]} 61. Ne5+ {[%clk 00:00:18]} Kd5 {[%clk
00:00:05]} {[%emt 00:00:04]} 62. Nd7 {[%clk 00:00:13]} {[%emt 00:00:11]} Ke6
{[%clk 00:00:03]} 63. Nc5+ {[%clk 00:00:13]} Kd6 {[%clk 00:00:04]} 64. Nd3
{[%clk 00:00:12]} {[%emt 00:00:06]} Rg5 {[%emt 00:00:04]} 65. Ne5 {[%clk
00:00:13]} Rg1 {[%clk 00:00:04]} 66. Nf7+ {[%clk 00:00:12]} Ke6 {[%clk
00:00:05]} {[%emt 00:00:08]} 67. Ne5 {[%clk 00:00:12]} Kf6 {[%clk 00:00:06]} 68.
Nd7+ {[%clk 00:00:12]} Ke7 {[%clk 00:00:05]} {[%emt 00:00:04]} 69. Ne5 {[%clk
00:00:13]} Ke6 {[%clk 00:00:07]} 70. Ke3 {[%clk 00:00:13]} {[%emt 00:00:05]}
Kf6 {[%clk 00:00:07]} 71. Kf3 {[%clk 00:00:14]} Rh1 {[%clk 00:00:08]} {[%emt
00:00:04]} 72. Kg3 {[%clk 00:00:15]} Ra1 {[%clk 00:00:08]} 73. Nc4 {[%clk
00:00:15]} {[%emt 00:00:13]} Rc1 {[%clk 00:00:09]} 74. Ne5 {[%clk 00:00:16]}
Rc3+ {[%clk 00:00:10]} 75. f3 {[%clk 00:00:14]} {[%emt 00:00:04]} Re3 {[%clk
00:00:10]} 76. Kf2 {[%clk 00:00:15]} Rxe5 {[%clk 00:00:10]} 77. fxe5+ {[%clk
00:00:15]} {[%emt 00:00:04]} Kxe5 {[%clk 00:00:12]} 78. Ke3 {[%clk 00:00:16]}
f4+ {[%clk 00:00:12]} 79. Kd3 {[%clk 00:00:16]} Kf5 {[%clk 00:00:12]} {[%emt
00:00:05]} 80. Ke2 {[%clk 00:00:16]} g5 {[%clk 00:00:10]} {[%emt 00:00:04]} 81.
hxg5 {[%clk 00:00:16]} Kxg5 {[%clk 00:00:12]} {[%emt 00:00:05]} 82. Kf2 {[%clk
00:00:17]} Kf5 {[%clk 00:00:13]} 83. Kg2 {[%clk 00:00:19]} Ke5 {[%clk
00:00:15]} {[%emt 00:00:38]} 84. Kh3 {[%clk 00:00:20]} Kd4 {[%clk 00:00:16]}
0-1

[Event "MČR 2022 blesk"]
[Site "Turnov, Czech Republic"]
[Date "2022.09.10"]
[Round "7.3"]
[White "Finek, Vaclav"]
[Black "Balacek, Tadeas"]
[Result "1/2-1/2"]
[TimeControl "2x 3 min + 2s/move"]
[WhiteElo "2101"]
[BlackElo "2257"]

1. d4 {[%clk 00:03:03]} {[%emt 00:00:08]} Nf6 {[%clk 00:03:03]} 2. Nf3 {[%clk
00:03:04]} e6 {[%clk 00:03:03]} 3. g3 {[%clk 00:03:05]} d5 {[%clk 00:03:02]} 4.
c4 {[%clk 00:03:05]} Bb4+ {[%clk 00:02:57]} 5. Bd2 {[%clk 00:03:06]} Bd6 {[%clk
00:02:57]} 6. Bg2 {[%clk 00:03:05]} c6 {[%clk 00:02:58]} 7. Qc2 {[%clk
00:02:55]} Nbd7 {[%clk 00:02:58]} 8. O-O {[%clk 00:02:55]} O-O {[%clk
00:02:59]} 9. Bf4 {[%clk 00:02:53]} {[%emt 00:00:15]} Bxf4 {[%clk 00:02:54]}
{[%emt 00:00:04]} 10. gxf4 {[%clk 00:02:53]} b6 {[%clk 00:02:34]} 11. Nbd2
{[%clk 00:02:47]} {[%emt 00:00:06]} Bb7 {[%clk 00:02:29]} {[%emt 00:00:07]} 12.
Ne5 {[%clk 00:02:41]} {[%emt 00:00:08]} Rc8 {[%clk 00:02:26]} {[%emt 00:00:05]}
13. e3 {[%clk 00:02:28]} {[%emt 00:00:18]} Qe7 {[%clk 00:02:26]} 14. Rac1
{[%clk 00:02:26]} {[%emt 00:00:09]} h6 {[%clk 00:02:13]} {[%emt 00:00:10]} 15.
Rfd1 {[%clk 00:02:14]} {[%emt 00:00:12]} Rfd8 {[%clk 00:02:09]} {[%emt
00:00:07]} 16. Qa4 {[%clk 00:02:03]} {[%emt 00:00:13]} a5 {[%clk 00:02:01]}
{[%emt 00:00:14]} 17. cxd5 {[%clk 00:01:56]} {[%emt 00:00:05]} cxd5 {[%clk
00:01:58]} {[%emt 00:00:06]} 18. Nc6 {[%clk 00:01:23]} {[%emt 00:00:33]} Bxc6
{[%clk 00:01:56]} {[%emt 00:00:07]} 19. Rxc6 {[%clk 00:01:24]} Rxc6 {[%clk
00:01:43]} {[%emt 00:00:14]} 20. Qxc6 {[%clk 00:01:24]} Qb4 {[%clk 00:01:43]}
{[%emt 00:00:05]} 21. Qc2 {[%clk 00:01:18]} {[%emt 00:00:06]} Qd6 {[%clk
00:01:29]} {[%emt 00:00:16]} 22. Nf3 {[%clk 00:01:14]} {[%emt 00:00:06]} g6
{[%clk 00:01:17]} {[%emt 00:00:15]} 23. Ne5 {[%clk 00:01:14]} {[%emt 00:00:05]}
Kg7 {[%clk 00:01:10]} {[%emt 00:00:08]} 24. Rc1 {[%clk 00:01:13]} {[%emt
00:00:05]} Rb8 {[%clk 00:00:33]} {[%emt 00:00:43]} 25. Bf1 {[%clk 00:01:01]}
{[%emt 00:00:05]} g5 {[%clk 00:00:25]} {[%emt 00:00:14]} 26. Qc7 {[%clk
00:00:45]} {[%emt 00:00:14]} Qxc7 {[%clk 00:00:24]} {[%emt 00:00:05]} 27. Rxc7
{[%clk 00:00:46]} Nxe5 {[%clk 00:00:11]} {[%emt 00:00:15]} 28. fxe5 {[%clk
00:00:46]} Ne4 {[%clk 00:00:11]} {[%emt 00:00:06]} 29. Bb5 {[%clk 00:00:44]}
{[%emt 00:00:04]} g4 {[%clk 00:00:09]} {[%emt 00:00:04]} 30. Kg2 {[%clk
00:00:46]} Kg6 {[%clk 00:00:09]} 31. a4 {[%clk 00:00:42]} {[%emt 00:00:08]} h5
{[%clk 00:00:11]} 32. f3 {[%clk 00:00:35]} {[%emt 00:00:11]} gxf3+ {[%clk
00:00:11]} 33. Kxf3 {[%clk 00:00:36]} Ng5+ {[%clk 00:00:12]} 34. Ke2 {[%clk
00:00:29]} {[%emt 00:00:08]} h4 {[%clk 00:00:12]} {[%emt 00:00:05]} 35. Bd3+
{[%clk 00:00:30]} Kg7 {[%clk 00:00:13]} 36. b3 {[%clk 00:00:28]} {[%emt
00:00:12]} Kh6 {[%clk 00:00:13]} 37. Kf2 {[%clk 00:00:24]} Kg7 {[%clk
00:00:14]} {[%emt 00:00:05]} 38. Ke2 {[%clk 00:00:19]} {[%emt 00:00:11]} Kh6
{[%clk 00:00:15]} 39. Rc6 {[%clk 00:00:17]} Kg7 {[%clk 00:00:16]} 40. Bb5
{[%clk 00:00:14]} {[%emt 00:00:05]} Kh6 {[%clk 00:00:16]} {[%emt 00:00:08]} 41.
Rc7 {[%clk 00:00:15]} Kg7 {[%clk 00:00:16]} 42. Kf2 {[%clk 00:00:10]} {[%emt
00:00:04]} Kh6 {[%clk 00:00:17]} 43. Ke2 {[%clk 00:00:10]} Kg7 {[%clk
00:00:18]} {[%emt 00:00:09]} 1/2-1/2

[Event "MČR 2022 blesk"]
[Site "Turnov, Czech Republic"]
[Date "2022.09.10"]
[Round "7.5"]
[White "Novotny, Michal"]
[Black "Polak, Tomas"]
[Result "1/2-1/2"]
[TimeControl "2x 3 min + 2s/move"]
[WhiteElo "2294"]
[BlackElo "2475"]

1. e4 {[%clk 00:03:01]} {[%emt 00:00:07]} c6 {[%clk 00:03:03]} 2. d4 {[%clk
00:03:01]} {[%emt 00:00:04]} d5 {[%clk 00:03:05]} 3. e5 {[%clk 00:03:02]} Bf5
{[%clk 00:03:05]} {[%emt 00:00:05]} 4. Nf3 {[%clk 00:03:03]} e6 {[%clk
00:03:07]} 5. Be2 {[%clk 00:03:04]} Nd7 {[%clk 00:03:08]} 6. O-O {[%clk
00:03:02]} {[%emt 00:00:09]} Ne7 {[%clk 00:03:09]} 7. a4 {[%clk 00:03:03]} h6
{[%clk 00:03:06]} {[%emt 00:00:04]} 8. a5 {[%clk 00:03:03]} a6 {[%clk
00:03:07]} 9. b4 {[%clk 00:03:04]} Bh7 {[%clk 00:03:04]} {[%emt 00:00:05]} 10.
c3 {[%clk 00:03:05]} g5 {[%clk 00:03:02]} {[%emt 00:00:09]} 11. Ne1 {[%clk
00:03:05]} Qc7 {[%clk 00:02:56]} {[%emt 00:00:09]} 12. Bd3 {[%clk 00:02:58]}
{[%emt 00:00:04]} Bf5 {[%clk 00:02:50]} {[%emt 00:00:19]} 13. f4 {[%clk
00:02:17]} {[%emt 00:00:32]} gxf4 {[%clk 00:02:45]} {[%emt 00:00:07]} 14. Bxf4
{[%clk 00:02:13]} {[%emt 00:00:06]} O-O-O {[%clk 00:02:41]} {[%emt 00:00:06]}
15. Nd2 {[%clk 00:02:13]} Bxd3 {[%emt 00:00:13]} 16. Nxd3 Nf5 {[%clk 00:02:36]}
{[%emt 00:00:05]} 17. Nb3 {[%clk 00:02:13]} Be7 {[%clk 00:02:35]} {[%emt
00:00:09]} 18. Nbc5 {[%clk 00:02:07]} Rdg8 {[%clk 00:02:31]} {[%emt 00:00:05]}
19. Ra2 {[%clk 00:01:59]} {[%emt 00:00:10]} h5 {[%clk 00:02:29]} {[%emt
00:00:04]} 20. Nxd7 {[%clk 00:01:48]} {[%emt 00:00:16]} Qxd7 {[%clk 00:02:29]}
21. Nc5 {[%clk 00:01:49]} Qd8 {[%clk 00:02:25]} {[%emt 00:00:10]} 22. Qd3
{[%clk 00:01:49]} Bxc5 {[%clk 00:02:04]} {[%emt 00:00:22]} 23. bxc5 {[%clk
00:01:48]} {[%emt 00:00:15]} Rg4 {[%clk 00:02:04]} 24. h3 {[%clk 00:01:34]}
{[%emt 00:00:08]} Rg6 {[%clk 00:02:02]} {[%emt 00:00:05]} 25. Rb1 {[%clk
00:01:21]} {[%emt 00:00:11]} Rhg8 {[%clk 00:01:45]} {[%emt 00:00:18]} 26. Rab2
{[%clk 00:01:22]} {[%emt 00:00:07]} Qe7 {[%clk 00:00:59]} {[%emt 00:00:43]} 27.
Kh1 {[%clk 00:01:11]} {[%emt 00:00:14]} Qc7 {[%clk 00:00:43]} {[%emt 00:00:18]}
28. Rxb7 {[%clk 00:01:01]} {[%emt 00:00:12]} Qxb7 {[%clk 00:00:43]} 29. Rxb7
{[%clk 00:01:02]} {[%emt 00:00:16]} Kxb7 {[%clk 00:00:44]} 30. Qb1+ {[%clk
00:01:03]} Kc8 {[%clk 00:00:35]} {[%emt 00:00:05]} 31. Qb6 {[%clk 00:01:04]}
Rxg2 {[%clk 00:00:33]} {[%emt 00:00:04]} 32. Qxc6+ {[%clk 00:00:58]} {[%emt
00:00:07]} Kd8 {[%clk 00:00:32]} {[%emt 00:00:04]} 33. Qb6+ {[%clk 00:00:42]}
{[%emt 00:00:14]} Ke7 {[%clk 00:00:30]} {[%emt 00:00:07]} 34. Qb7+ {[%clk
00:00:38]} {[%emt 00:00:06]} Ke8 {[%clk 00:00:30]} {[%emt 00:00:08]} 35. Qc8+
{[%clk 00:00:31]} {[%emt 00:00:05]} Ke7 {[%clk 00:00:31]} 36. Qb7+ {[%clk
00:00:26]} {[%emt 00:00:04]} Ke8 {[%clk 00:00:31]} 1/2-1/2

[Event "MČR 2022 blesk"]
[Site "Turnov, Czech Republic"]
[Date "2022.09.10"]
[Round "7.6"]
[White "Roubalik, Jakub"]
[Black "Nagy, Ladislav"]
[Result "1-0"]
[TimeControl "2x 3 min + 2s/move"]
[WhiteElo "2276"]
[BlackElo "2189"]

1. d4 {[%clk 00:03:03]} {[%emt 00:00:07]} Nf6 {[%clk 00:03:03]} 2. c4 {[%clk
00:03:04]} e6 {[%clk 00:03:05]} {[%emt 00:00:05]} 3. Nf3 {[%clk 00:03:05]} d5
{[%clk 00:03:06]} 4. Nc3 {[%clk 00:03:05]} Be7 {[%clk 00:03:06]} 5. Bg5 {[%clk
00:03:02]} {[%emt 00:00:08]} O-O {[%clk 00:03:05]} 6. e3 {[%clk 00:03:03]} h6
{[%clk 00:03:06]} {[%emt 00:00:08]} 7. Bxf6 {[%clk 00:03:02]} Bxf6 {[%clk
00:03:06]} 8. Qc2 {[%clk 00:03:02]} Nc6 {[%clk 00:02:29]} {[%emt 00:01:20]} 9.
a3 {[%clk 00:02:42]} {[%emt 00:00:12]} a5 {[%clk 00:01:54]} {[%emt 00:00:42]}
10. Bd3 {[%clk 00:02:30]} {[%emt 00:00:09]} Re8 {[%clk 00:01:34]} {[%emt
00:00:22]} 11. Rd1 {[%clk 00:02:21]} {[%emt 00:00:11]} b6 {[%clk 00:01:27]}
{[%emt 00:00:09]} 12. cxd5 {[%clk 00:02:13]} {[%emt 00:00:09]} exd5 {[%clk
00:01:27]} {[%emt 00:00:05]} 13. O-O {[%clk 00:02:12]} Ne7 {[%clk 00:01:14]}
{[%emt 00:00:14]} 14. Ne5 {[%clk 00:02:04]} {[%emt 00:00:11]} c5 {[%clk
00:00:50]} {[%emt 00:00:26]} 15. Bb5 {[%clk 00:01:34]} {[%emt 00:00:36]} Rf8
{[%clk 00:00:48]} {[%emt 00:00:04]} 16. f4 {[%clk 00:01:34]} Bf5 {[%clk
00:00:36]} {[%emt 00:00:13]} 17. Qf2 {[%clk 00:01:32]} {[%emt 00:00:05]} c4
{[%clk 00:00:30]} {[%emt 00:00:06]} 18. h3 {[%clk 00:01:20]} {[%emt 00:00:14]}
Bxe5 {[%clk 00:00:18]} {[%emt 00:00:15]} 19. dxe5 {[%clk 00:01:14]} {[%emt
00:00:07]} Bd3 {[%clk 00:00:18]} {[%emt 00:00:05]} 20. Rfe1 {[%clk 00:01:13]}
{[%emt 00:00:12]} Qc7 {[%clk 00:00:13]} 21. e4 {[%clk 00:01:07]} {[%emt
00:00:05]} dxe4 {[%clk 00:00:09]} {[%emt 00:00:05]} 22. Nxe4 {[%clk 00:01:05]}
{[%emt 00:00:05]} Rfd8 {[%clk 00:00:07]} {[%emt 00:00:05]} 23. Nd6 {[%clk
00:01:04]} {[%emt 00:00:04]} Nf5 {[%clk 00:00:07]} 24. Rxd3 {[%clk 00:00:56]}
{[%emt 00:00:09]} cxd3 {[%clk 00:00:07]} {[%emt 00:00:05]} 25. Nxf5 {[%clk
00:00:57]} d2 {[%clk 00:00:08]} 26. Rd1 {[%clk 00:00:53]} {[%emt 00:00:05]} Qc1
{[%clk 00:00:06]} {[%emt 00:00:06]} 27. Be2 {[%clk 00:00:51]} {[%emt 00:00:14]}
Qc2 {[%clk 00:00:05]} 28. Nd6 {[%clk 00:00:48]} Qxb2 {[%clk 00:00:04]} {[%emt
00:00:10]} 29. Bc4 {[%clk 00:00:45]} Qc1 {[%clk 00:00:05]} 30. Qxd2 {[%clk
00:00:40]} {[%emt 00:00:05]} Qxd2 {[%clk 00:00:04]} {[%emt 00:00:04]} 31. Rxd2
{[%clk 00:00:41]} {[%emt 00:00:05]} Rab8 {[%clk 00:00:04]} 32. Bxf7+ {[%clk
00:00:40]} Kf8 {[%clk 00:00:04]} 33. Bg6 {[%clk 00:00:36]} {[%emt 00:00:06]} b5
{[%clk 00:00:05]} {[%emt 00:00:04]} 34. Rc2 {[%clk 00:00:24]} {[%emt 00:00:09]}
b4 {[%clk 00:00:04]} {[%emt 00:00:07]} 35. axb4 axb4 {[%clk 00:00:05]} {[%emt
00:00:05]} 36. Rc7 {[%clk 00:00:25]} b3 {[%clk 00:00:06]} 37. Bh7 {[%clk
00:00:23]} Rxd6 {[%clk 00:00:07]} {[%emt 00:00:05]} 38. exd6 {[%clk 00:00:24]}
b2 {[%clk 00:00:08]} 39. Bb1 {[%clk 00:00:24]} {[%emt 00:00:04]} Rb6 {[%clk
00:00:05]} {[%emt 00:00:04]} 40. Rc2 {[%clk 00:00:21]} {[%emt 00:00:04]} Rxd6
{[%clk 00:00:06]} 41. Rxb2 {[%clk 00:00:23]} {[%emt 00:00:05]} Rd1+ {[%clk
00:00:07]} 42. Kf2 {[%clk 00:00:24]} Kf7 {[%clk 00:00:07]} 43. Kf3 {[%clk
00:00:25]} Rd4 {[%clk 00:00:06]} {[%emt 00:00:15]} 44. Be4 {[%clk 00:00:25]}
Kf6 {[%clk 00:00:06]} 45. Rb6+ {[%clk 00:00:26]} Ke7 {[%clk 00:00:07]} {[%emt
00:00:10]} 46. g4 {[%clk 00:00:27]} Ra4 {[%clk 00:00:08]} 47. g5 {[%clk
00:00:27]} Ra3+ {[%clk 00:00:09]} {[%emt 00:00:04]} 48. Kg4 {[%clk 00:00:27]}
Re3 {[%clk 00:00:09]} 49. Bf5 {[%clk 00:00:25]} hxg5 {[%clk 00:00:10]} 50. fxg5
{[%clk 00:00:26]} Ra3 {[%clk 00:00:07]} {[%emt 00:00:05]} 51. Rb7+ {[%clk
00:00:27]} Kf8 {[%clk 00:00:06]} 52. Kh5 {[%clk 00:00:26]} {[%emt 00:00:05]}
Ra5 {[%clk 00:00:07]} 53. Be4 {[%clk 00:00:24]} {[%emt 00:00:04]} Ra3 {[%clk
00:00:07]} 54. h4 {[%clk 00:00:22]} {[%emt 00:00:09]} Ra6 {[%clk 00:00:08]} 55.
Bd3 {[%clk 00:00:20]} Rd6 {[%clk 00:00:08]} {[%emt 00:00:04]} 56. Bc4 {[%clk
00:00:20]} Rc6 {[%clk 00:00:09]} {[%emt 00:00:04]} 57. Rf7+ {[%clk 00:00:20]}
Ke8 {[%clk 00:00:09]} {[%emt 00:00:09]} 58. Rf4 {[%clk 00:00:20]} Rb6 {[%clk
00:00:07]} 59. Re4+ {[%clk 00:00:20]} {[%emt 00:00:05]} Kf8 {[%clk 00:00:07]}
60. Be6 {[%clk 00:00:20]} Rd6 {[%clk 00:00:07]} 61. Kg6 {[%clk 00:00:20]}
{[%emt 00:00:06]} Rb6 {[%clk 00:00:07]} {[%emt 00:00:04]} 62. h5 {[%clk
00:00:19]} Rd6 {[%clk 00:00:07]} 63. Kh7 {[%clk 00:00:19]} {[%emt 00:00:05]}
Rb6 {[%clk 00:00:07]} {[%emt 00:00:09]} 64. g6 {[%clk 00:00:18]} Rxe6 65. Rf4+
{[%clk 00:00:16]} Ke7 {[%clk 00:00:03]} {[%emt 00:00:08]} 66. Kxg7 {[%clk
00:00:16]} {[%emt 00:00:05]} Re5 {[%clk 00:00:04]} 67. h6 {[%clk 00:00:17]} 1-0

[Event "MČR 2022 blesk"]
[Site "Turnov, Czech Republic"]
[Date "2022.09.10"]
[Round "7.7"]
[White "Vybiral, Zdenek"]
[Black "Nemec, Jachym"]
[Result "0-1"]
[TimeControl "2x 3 min + 2s/move"]
[WhiteElo "2162"]
[BlackElo "2130"]

1. c4 {[%clk 00:03:03]} {[%emt 00:00:06]} c6 {[%clk 00:03:02]} 2. e4 {[%clk
00:02:58]} {[%emt 00:00:08]} d5 {[%clk 00:03:03]} 3. exd5 {[%clk 00:02:58]}
{[%emt 00:00:24]} cxd5 {[%clk 00:03:04]} 4. d4 {[%clk 00:02:59]} Nf6 {[%clk
00:03:02]} 5. Nc3 {[%clk 00:03:00]} Nc6 {[%clk 00:03:01]} 6. Bg5 {[%clk
00:03:01]} Be6 {[%clk 00:02:35]} {[%emt 00:00:15]} 7. Be2 {[%clk 00:03:02]} h6
{[%clk 00:02:31]} {[%emt 00:00:10]} 8. Bxf6 {[%clk 00:02:57]} {[%emt 00:00:26]}
exf6 {[%clk 00:02:29]} {[%emt 00:00:05]} 9. Bf3 {[%clk 00:02:58]} Bb4 {[%clk
00:02:14]} 10. Nge2 {[%clk 00:02:50]} {[%emt 00:00:05]} O-O {[%clk 00:02:06]}
{[%emt 00:00:09]} 11. O-O {[%clk 00:02:50]} {[%emt 00:00:16]} Bxc3 {[%clk
00:02:06]} 12. Nxc3 {[%clk 00:02:48]} Ne7 {[%clk 00:02:08]} 13. c5 {[%clk
00:02:31]} {[%emt 00:00:12]} g5 {[%clk 00:01:59]} {[%emt 00:00:11]} 14. b4
{[%clk 00:02:17]} {[%emt 00:00:17]} Qd7 {[%clk 00:01:57]} {[%emt 00:00:05]} 15.
g3 {[%clk 00:02:00]} {[%emt 00:00:21]} Kg7 {[%clk 00:01:44]} {[%emt 00:00:15]}
16. Qa4 {[%clk 00:01:51]} {[%emt 00:00:08]} Qxa4 {[%clk 00:01:37]} {[%emt
00:00:08]} 17. Nxa4 {[%clk 00:01:52]} Nc6 {[%clk 00:01:39]} 18. Rfd1 {[%clk
00:01:36]} {[%emt 00:00:29]} Nxb4 {[%emt 00:00:13]} 19. Rab1 Nc6 {[%clk
00:01:25]} 20. Rxb7 {[%clk 00:01:38]} Rfb8 {[%clk 00:01:26]} 21. Rc7 {[%clk
00:01:29]} {[%emt 00:00:10]} Rc8 {[%clk 00:01:25]} {[%emt 00:00:05]} 22. Rxc8
{[%clk 00:01:27]} {[%emt 00:00:09]} Rxc8 {[%clk 00:01:26]} 23. Nc3 {[%clk
00:01:28]} Rd8 {[%clk 00:01:22]} {[%emt 00:00:05]} 24. Kf1 {[%clk 00:01:05]}
{[%emt 00:00:20]} f5 {[%clk 00:00:59]} {[%emt 00:00:26]} 25. Ke2 {[%clk
00:01:01]} {[%emt 00:00:06]} Kf6 {[%clk 00:00:58]} {[%emt 00:00:06]} 26. Ke3
{[%clk 00:01:00]} {[%emt 00:00:04]} Re8 {[%clk 00:00:44]} {[%emt 00:00:11]} 27.
Kd3 {[%clk 00:01:01]} {[%emt 00:00:11]} Rd8 {[%clk 00:00:45]} 28. Rd2 {[%clk
00:00:20]} {[%emt 00:00:36]} f4 {[%clk 00:00:44]} {[%emt 00:00:05]} 29. g4
{[%clk 00:00:16]} {[%emt 00:00:06]} h5 {[%clk 00:00:41]} {[%emt 00:00:13]} 30.
h3 {[%clk 00:00:15]} hxg4 {[%clk 00:00:39]} 31. Bxg4 {[%clk 00:00:12]} {[%emt
00:00:04]} Kg6 {[%clk 00:00:33]} {[%emt 00:00:09]} 32. Re2 {[%clk 00:00:10]}
{[%emt 00:00:05]} Kf6 {[%clk 00:00:31]} {[%emt 00:00:08]} 33. Rb2 {[%clk
00:00:04]} {[%emt 00:00:05]} Rd7 {[%clk 00:00:31]} 0-1